{"text_format":"3","workbook":"xlsx","n_sheets":4,"sheets":["Začetek","Stroški","Prihodek","Povzetek dobička in izgube"],"not_rendered":{"charts":1},"read":"whole","date_system":"1900"}

{"sheet":"Začetek","index":0,"n_rows":8,"n_cols":2,"rows_kept":8}
[null,"O TEJ PREDLOGI"]
[null,"S tem delovnim zvezkom »Proračun dogodka« lahko spremljate nastale stroške in prihodek, prislužen med dogodkom."]
[null,"Vnesite ime dogodka in podrobnosti na delovni list »Stroški« in »Prihodek«."]
[null,"Vrednosti »Stroški skupaj« in »Prihodek skupaj« so izračunani samodejno."]
[null,"Grafikon »Povzetek dobička in izgube« je samodejno posodobljen na delovnem listu »Povzetek dobička in izgube«."]
[null,"Opomba: "]
[null,"Dodatna navodila so na voljo v stolpcu A na vsakem delovnem listu. To besedilo je bilo skrito namenoma. Če želite besedilo premakniti, izberite stolpec A, nato izberite še IZBRIŠI. Če želite besedilo razkriti, izberite stolpec A, nato zamenjajte barvo pisave."]
[null,"Za več informacij o tabelah v tabeli pritisnite tipko SHIFT in nato tipko F10 ter izberite možnost TABELA in nato še NADOMESTNO BESEDILO."]

{"sheet":"Stroški","index":1,"n_rows":32,"n_cols":8,"rows_kept":32,"merged":[[0,1,0,4],[2,1,3,1]]}
["Vnesite predvidene in dejanske stroške za vsako kategorijo v ustrezno tabelo na tem delovnem listu, ime dogodka pa v celico D1, da prilagodite naslov tega delovnega lista in drugih delovnih listov. Podnaslov tega delovnega lista je v celici H1. Uporabna navodila za uporabo tega delovnega lista najdete v celicah v tem stolpcu. Naslednje navodilo je v celici A3.","Proračun dogodka za ime dogodka",{"$nulls":5},"STROŠKI"]
[]
["Oznaka »Stroški skupaj« je v celici na desni, oznaka »Predvideno« v celici G3, »Dejansko« pa v celici H3.","STROŠKI SKUPAJ",{"$nulls":4},"Predvideno","Dejansko"]
["Predvideni stroški skupaj v celici G4 in dejanski stroški skupaj v celici H4 so izračunani samodejno. Naslednje navodilo je v celici A6.",{"$nulls":5},{"$f":"SUM(C11,C19,C25,C32,G11,G19,G24)","v":{"v":882,"d":"882.00 €"}},{"$f":"SUM(D11,D19,D25,D32,H11,H19,H24)","v":{"v":333,"d":"333.00 €"}}]
[]
["Vnesite stroški mesta v tabelo z začetkom v celici na desni, stroški za okrepčila in prigrizkov pa v tabelo z začetkom v celici F6. Naslednji korak je v celici A13.","Prizorišče","Predvideno","Dejansko",null,"Pijača in prigrizki","Predvideno","Dejanski"]
[null,"Stroški najema sobe in dvorane",{"v":500,"d":"500.00 €"},null,null,"Hrana"]
[null,"Osebje na prizorišču",{"$nulls":3},"Pijača",{"v":20,"d":"20.00 €"}]
[null,"Oprema",{"$nulls":3},"Prti",null,{"v":20,"d":"20.00 €"}]
[null,"Mize in stoli",{"$nulls":3},"Osebje in napitnine"]
[null,"Vsota",{"$f":"SUBTOTAL(109,StroškiMesta[Predvideno])","v":{"v":500,"d":"500.00 €"}},{"$f":"SUBTOTAL(109,StroškiMesta[Dejansko])","v":{"v":0,"d":"0.00 €"}},null,"Vsota",{"$f":"SUBTOTAL(109,StroškiZaOkrepčila[Predvideno])","v":{"v":20,"d":"20.00 €"}},{"$f":"SUBTOTAL(109,StroškiZaOkrepčila[Dejanski])","v":{"v":20,"d":"20.00 €"}}]
[]
["Vnesite stroški za dekoracije v tabelo z začetkom v celici na desni, stroški programa pa v tabelo z začetkom v celici F13. Naslednji korak je v celici A21.","Dekoracija","Predvideno","Dejansko",null,"Program","Predvideno","Dejanski"]
[null,"Cvetje",{"v":200,"d":"200.00 €"},{"v":300,"d":"300.00 €"},null,"Izvajalci"]
[null,"Sveče",{"$nulls":3},"Govorci",{"v":30,"d":"30.00 €"}]
[null,"Osvetlitev",{"$nulls":3},"Potovanje"]
[null,"Baloni",{"$nulls":3},"Hotel"]
[null,"Papir",{"$nulls":3},"Drugo"]
[null,"Vsota",{"$f":"SUBTOTAL(109,StroškiZaDekoracije[Predvideno])","v":{"v":200,"d":"200.00 €"}},{"$f":"SUBTOTAL(109,StroškiZaDekoracije[Dejansko])","v":{"v":300,"d":"300.00 €"}},null,"Vsota",{"$f":"SUBTOTAL(109,StroškiPrograma[Predvideno])","v":{"v":30,"d":"30.00 €"}},{"$f":"SUBTOTAL(109,StroškiPrograma[Dejanski])","v":{"v":0,"d":"0.00 €"}}]
[]
["Vnesite stroški promocije materiala v tabelo z začetkom v celici na desni, stroški za nagrade pa v tabelo z začetkom v celici F21. Naslednje navodilo je v celici A27.","Promocijski material","Predvideno","Dejansko",null,"Nagrade","Predvideno","Dejansko"]
[null,"Grafika",{"$nulls":3},"Manšete/plakete/trofeje"]
[null,"Fotokopiranje/tiskanje",{"v":20,"d":"20.00 €"},null,null,"Darila",{"v":100,"d":"100.00 €"}]
[null,"Poštnina",{"$nulls":3},"Vsota",{"$f":"SUBTOTAL(109,StroškiZaNagrade[Predvideno])","v":{"v":100,"d":"100.00 €"}},{"$f":"SUBTOTAL(109,StroškiZaNagrade[Dejansko])","v":{"v":0,"d":"0.00 €"}}]
[null,"Vsota",{"$f":"SUBTOTAL(109,StroškiPromocije[Predvideno])","v":{"v":20,"d":"20.00 €"}},{"$f":"SUBTOTAL(109,StroškiPromocije[Dejansko])","v":{"v":0,"d":"0.00 €"}}]
[]
["Vnesite razni stroški v tabelo z začetkom v celici na desni.","Razno","Predvideno","Dejansko"]
[null,"Telefon",null,{"v":13,"d":"13.00 €"}]
[null,"Prevoz",{"v":12,"d":"12.00 €"}]
[null,"Pisarniška oprema"]
[null,"Faks"]
[null,"Vsota",{"$f":"SUBTOTAL(109,RazniStroški[Predvideno])","v":{"v":12,"d":"12.00 €"}},{"$f":"SUBTOTAL(109,RazniStroški[Dejansko])","v":{"v":13,"d":"13.00 €"}}]

{"sheet":"Prihodek","index":2,"n_rows":29,"n_cols":7,"rows_kept":29,"merged":[[0,1,0,3],[2,1,3,1]]}
["Vnesite predvideno in dejansko prihodke za vsako kategorijo v ustrezne tabele na tem delovnem listu. Naslov tega delovnega lista je samodejno posodobljen v celici na desni. Podnaslov je v celici G1. Uporabna navodila za uporabo tega delovnega lista najdete v celicah v tem stolpcu. Naslednje navodilo je v celici A3.",{"$f":"Stroški!B1","v":"Proračun dogodka za ime dogodka"},{"$nulls":4},"DOHODEK"]
[]
["Oznaka »prihodek skupaj« je v celici na desni, oznaka »Predvideno« v celici F3, »Dejansko« pa v celici G3.","PRIHODEK SKUPAJ",{"$nulls":3},"Predvideno","Dejansko"]
["Predviden prihodek skupaj je samodejno izračunan v celici F4, dejanski prihodek skupaj pa v celici G4.",{"$nulls":4},{"$f":"SUM(Vstopnina[[#Totals],[Predviden dohodek]],OglasiVProgramu[[#Totals],[Predviden dohodek]],RazstavljavciAliProdajalci[[#Totals],[Predviden dohodek]],ProdajaElementov[[#Totals],[Predviden dohodek]])","v":{"v":1936,"d":"1,936.00 €"}},{"$f":"SUM(Vstopnina[[#Totals],[Dejanski dohodek]],OglasiVProgramu[[#Totals],[Dejanski dohodek]],RazstavljavciAliProdajalci[[#Totals],[Dejanski dohodek]],ProdajaElementov[[#Totals],[Dejanski dohodek]])","v":{"v":1831,"d":"1,831.00 €"}}]
["Oznaka za vstopnina je v celici na desni.","VSTOPNINA"]
["Vnesite predvideno in dejansko število vstopnin s cenami vstopnic v tabelo z začetkom v celici na desni. Predviden in dejanski prihodek z naslova vstopnin je samodejno izračunan. Naslednji korak je v celici A11.","Št. predvidenih","Dejansko število","Vrsta","Cena","Predviden dohodek","Dejanski dohodek"]
[null,300,278,"Odrasli @",{"v":5,"d":"5.00 €"},{"$f":"B7*E7","v":{"v":1500,"d":"1,500.00 €"}},{"$f":"C7*E7","v":{"v":1390,"d":"1,390.00 €"}}]
[null,197,195,"Otroci @",{"v":2,"d":"2.00 €"},{"$f":"B8*E8","v":{"v":394,"d":"394.00 €"}},{"$f":"C8*E8","v":{"v":390,"d":"390.00 €"}}]
[null,42,51,"Drugo @",{"v":1,"d":"1.00 €"},{"$f":"B9*E9","v":{"v":42,"d":"42.00 €"}},{"$f":"C9*E9","v":{"v":51,"d":"51.00 €"}}]
[null,"Vsota",{"$nulls":3},{"$f":"SUBTOTAL(109,Vstopnina[Predviden dohodek])","v":{"v":1936,"d":"1,936.00 €"}},{"$f":"SUBTOTAL(109,Vstopnina[Dejanski dohodek])","v":{"v":1831,"d":"1,831.00 €"}}]
["Oznaka za oglasi v programu je v celici na desni.","OGLASI V PROGRAMU"]
["Vnesite predvideno in dejansko število oglasov v programu ter tarife oglasov v tabelo z začetkom v celici na desni. Predviden in dejanski prihodek z naslova oglasov je samodejno izračunan. Naslednje navodilo je v celici A17.","Št. predvidenih","Dejansko število","Vrsta","Cena","Predviden dohodek","Dejanski dohodek"]
[null,12,null,"Naslovnice @",null,{"$f":"B13*E13","v":{"v":0,"d":"0.00 €"}},{"$f":"C13*E13","v":{"v":0,"d":"0.00 €"}}]
[null,null,158,"Polovica strani @",null,{"$f":"B14*E14","v":{"v":0,"d":"0.00 €"}},{"$f":"C14*E14","v":{"v":0,"d":"0.00 €"}}]
[null,4,null,"Četrtina strani @",null,{"$f":"B15*E15","v":{"v":0,"d":"0.00 €"}},{"$f":"C15*E15","v":{"v":0,"d":"0.00 €"}}]
[null,"Vsota",{"$nulls":3},{"$f":"SUBTOTAL(109,OglasiVProgramu[Predviden dohodek])","v":{"v":0,"d":"0.00 €"}},{"$f":"SUBTOTAL(109,OglasiVProgramu[Dejanski dohodek])","v":{"v":0,"d":"0.00 €"}}]
["Oznaka za razstavljavci ali prodajalci je v celici na desni.","RAZSTAVLJAVCI/PRODAJALCI"]
["Vnesite predvideno in dejansko število razstavljavcev in prodajalcev ter tarife za stojnice v tabelo z začetkom v celici na desni. Predviden in dejanski prihodek je izračunan samodejno. Naslednje navodilo je v celici A23.","Št. predvidenih","Dejansko število","Vrsta","Cena","Predviden dohodek","Dejanski dohodek"]
[null,23,null,"Velika stojnica @",null,{"$f":"B19*E19","v":{"v":0,"d":"0.00 €"}},{"$f":"C19*E19","v":{"v":0,"d":"0.00 €"}}]
[null,354,null,"Srednje velika stojnica @",null,{"$f":"B20*E20","v":{"v":0,"d":"0.00 €"}},{"$f":"C20*E20","v":{"v":0,"d":"0.00 €"}}]
[null,56,null,"Mala stojnica @",null,{"$f":"B21*E21","v":{"v":0,"d":"0.00 €"}},{"$f":"C21*E21","v":{"v":0,"d":"0.00 €"}}]
[null,"Vsota",{"$nulls":3},{"$f":"SUBTOTAL(109,RazstavljavciAliProdajalci[Predviden dohodek])","v":{"v":0,"d":"0.00 €"}},{"$f":"SUBTOTAL(109,RazstavljavciAliProdajalci[Dejanski dohodek])","v":{"v":0,"d":"0.00 €"}}]
["Oznaka za prodaja elementov je v celici na desni.","PRODAJA ELEMENTOV"]
["Vnesite predvideno in dejansko število prodanih elementov in tarife elementov v tabelo z začetkom v celici na desni. Predviden in dejanski prihodek je izračunan samodejno.","Št. predvidenih","Dejansko število","Vrsta","Cena","Predviden dohodek","Dejanski dohodek"]
[{"$nulls":3},"Elementi @",null,{"$f":"B25*E25","v":{"v":0,"d":"0.00 €"}},{"$f":"C25*E25","v":{"v":0,"d":"0.00 €"}}]
[null,123,null,"Elementi @",null,{"$f":"B26*E26","v":{"v":0,"d":"0.00 €"}},{"$f":"C26*E26","v":{"v":0,"d":"0.00 €"}}]
[{"$nulls":3},"Elementi @",null,{"$f":"B27*E27","v":{"v":0,"d":"0.00 €"}},{"$f":"C27*E27","v":{"v":0,"d":"0.00 €"}}]
[null,13,null,"Elementi @",null,{"$f":"B28*E28","v":{"v":0,"d":"0.00 €"}},{"$f":"C28*E28","v":{"v":0,"d":"0.00 €"}}]
[null,"Vsota",{"$nulls":3},{"$f":"SUBTOTAL(109,ProdajaElementov[Predviden dohodek])","v":{"v":0,"d":"0.00 €"}},{"$f":"SUBTOTAL(109,ProdajaElementov[Dejanski dohodek])","v":{"v":0,"d":"0.00 €"}}]

{"sheet":"Povzetek dobička in izgube","index":3,"n_rows":8,"n_cols":7,"rows_kept":8,"merged":[[0,1,0,3],[2,4,11,6]]}
["Povzetek dobička in izgube ter grafikon, ki prikazuje prihodek skupaj in stroške, so samodejno posodobljeni na tem delovnem listu. Naslov tega delovnega lista je samodejno posodobljen v celici na desni. Podnaslov je v celici G1 in G2. Uporabna navodila za uporabo tega delovnega lista najdete v celicah v tem stolpcu. Naslednje navodilo je v celici A3.",{"$f":"Stroški!B1","v":"Proračun dogodka za ime dogodka"},{"$nulls":4},"DOBIČEK"]
[{"$nulls":6},"Povzetek izgube"]
["Palični grafikon s primerjavo predvidenega prihodka in stroškov ter dejanskega prihodka ter stroškov je v celici E3.",{"$nulls":3},"Palični grafikon s primerjavo predvidenih prihodkov in stroškov ter dejanskih prihodkov in stroškov je v tej celici."]
["Tabela s povzetkom z začetkom v celici na desni je samodejno posodobljena. Naslednji korak je v celici A8."," Skupaj","Predvideno","Dejansko"]
[null,"Prihodek skupaj",{"$f":"Prihodek!F4","v":{"v":1936,"d":"1,936.00 €"}},{"$f":"Prihodek!G4","v":{"v":1831,"d":"1,831.00 €"}}]
[null,"Stroški skupaj",{"$f":"Stroški!G4","v":{"v":882,"d":"882.00 €"}},{"$f":"Stroški!H4","v":{"v":333,"d":"333.00 €"}}]
[]
["Vrednost predvidenega dobiček skupaj ali izguba je samodejno izračunana v celici C8, vrednost dejanskega skupnega dobička ali izgube pa v celici D8.","Dobiček skupaj\n(ali izguba)",{"$f":"C5-C6","v":{"v":1054,"d":"1,054.00 €"}},{"$f":"D5-D6","v":{"v":1498,"d":"1,498.00 €"}}]